[Event "EYCC Open-U12 2019"]
[Site "Bratislava"]
[Date "2019.08.07"]
[Round "6.28"]
[White "Cohen, Elad"]
[Black "Janeczko, Jakub"]
[Result "1/2-1/2"]
[ECO "B38"]
[WhiteElo "2002"]
[BlackElo "1663"]
[Annotator "NA"]
[PlyCount "48"]
[EventDate "2019.08.02"]
[EventType "swiss"]
[EventCountry "SVK"]
[SourceTitle "playchess.com"]
[Source "ChessBase"]
[SourceQuality "1"]
[TimeControl "40/5400+30:1800+30"]

1. Nf3 {[%emt 0:00:00]} c5 {[%emt 0:00:00]} 2. c4 {[%emt 0:00:00]} Nc6 {[%emt 0:00:15]} 3. d4 {[%emt 0:00:55]} cxd4 {[%emt 0:00:47]} 4. Nxd4 {[%emt 0:00:39]} g6 {[%emt 0:02:01]} 5. e4 {[%emt 0:00:29]} Bg7 {[%emt 0:00:28]} 6. Be3 {[%emt 0:00:22]} d6 {[%emt 0:01:03]} 7. Nc3 {[%emt 0:01:06]} Nf6 {[%emt 0:00:43]} 8. Be2 {[%emt 0:00:24]} O-O {[%emt 0:00:14]} 9. Qd2 {[%emt 0:00:31]} Ng4 {[%emt 0:08:18]} 10. Bxg4 {[%emt 0:00:09]} Bxg4 {[%emt 0:00:16]} 11. O-O {[%emt 0:00:52]} Re8 {[%emt 0:05:07]} 12. f4 {[%emt 0:06:01]} Nxd4 {[%emt 0:10:26]} 13. Bxd4 {[%emt 0:00:37]} e5 {[%emt 0:00:18]} 14. Be3 {[%emt 0:08:23]} Be6 {[%emt 0:09:02]} 15. Nd5 {[%emt 0:03:45]} f5 {[%emt 0:07:10]} 16. fxe5 {[%emt 0:11:48]} dxe5 {[%emt 0:01:26]} 17. Bg5 {[%emt 0:10:44]} Qd7 {[%emt 0:00:24]} 18. Rad1 {[%emt 0:01:47]} Qf7 {[%emt 0:09:30]} 19. Bh6 {[%emt 0:09:28]} Bf6 {[%emt 0:03:54]} 20. Be3 {[%emt 0:08:10]} f4 {[%emt 0:04:48]} 21. Bf2 {[%emt 0:04:51]} g5 {[%emt 0:06:46]} 22. Qb4 {[%emt 0:04:37]} Bd8 {[%emt 0:05:02]} 23. Bc5 {[%emt 0:05:52]} g4 {[%emt 0:03:39]} 24. Qc3 {[%emt 0:03:39]} Qg7 {[%emt 0:02:59]} 1/2-1/2

[Event "EYCC Open-U12 2019"]
[Site "Bratislava"]
[Date "2019.08.07"]
[Round "6.29"]
[White "De Winter, Arthur"]
[Black "Shatil, Shir"]
[Result "1/2-1/2"]
[ECO "B34"]
[WhiteElo "1859"]
[BlackElo "1653"]
[Annotator "NA"]
[PlyCount "69"]
[EventDate "2019.08.02"]
[EventType "swiss"]
[EventCountry "SVK"]
[SourceTitle "playchess.com"]
[Source "ChessBase"]
[SourceQuality "1"]
[TimeControl "40/5400+30:1800+30"]

1. e4 {[%emt 0:00:00]} c5 {[%emt 0:00:00]} 2. Nf3 {[%emt 0:00:00]} Nc6 {[%emt 0:00:00]} 3. d4 {[%emt 0:00:00]} cxd4 {[%emt 0:00:00]} 4. Nxd4 {[%emt 0:00:00]} Nf6 {[%emt 0:00:00]} 5. Nc3 {[%emt 0:00:04]} e5 {[%emt 0:00:06]} 6. Ndb5 {[%emt 0:00:05]} d6 {[%emt 0:00:04]} 7. Nd5 {[%emt 0:00:06]} Nxd5 {[%emt 0:00:06]} 8. exd5 {[%emt 0:00:07]} Nb8 {[%emt 0:00:03]} 9. a4 {[%emt 0:00:18]} Be7 {[%emt 0:00:08]} 10. Be2 {[%emt 0:00:24]} O-O {[%emt 0:00:05]} 11. O-O {[%emt 0:00:04]} Nd7 {[%emt 0:00:28]} 12. Be3 {[%emt 0:00:45]} a6 {[%emt 0:00:13]} 13. Na3 {[%emt 0:00:07]} f5 {[%emt 0:00:11]} 14. f4 {[%emt 0:01:46]} Qc7 {[%emt 0:00:47]} 15. Nc4 {[%emt 0:00:49]} b6 {[%emt 0:00:31]} 16. fxe5 {[%emt 0:01:06]} Nxe5 {[%emt 0:12:03]} 17. Nxb6 {[%emt 0:00:48]} Rb8 {[%emt 0:00:35]} 18. a5 {[%emt 0:00:08]} g5 {[%emt 0:09:27]} 19. Bd4 {[%emt 0:07:46]} Bf6 {[%emt 0:03:13]} 20. Ra3 {[%emt 0:06:42]} f4 {[%emt 0:06:49]} 21. Kh1 {[%emt 0:13:05]} Bb7 {[%emt 0:08:30]} 22. c4 {[%emt 0:07:22]} Nd7 {[%emt 0:10:42]} 23. Nxd7 {[%emt 0:07:07]} Qxd7 {[%emt 0:00:21]} 24. Bxf6 {[%emt 0:09:04]} Rxf6 {[%emt 0:00:51]} 25. Bg4 {[%emt 0:00:41]} Qg7 {[%emt 0:04:47]} 26. Re1 {[%emt 0:01:30]} Bc8 {[%emt 0:03:23]} 27. Be6+ {[%emt 0:10:25]} Bxe6 {[%emt 0:02:32]} 28. dxe6 {[%emt 0:00:09]} Qe7 {[%emt 0:02:15]} 29. Qd5 {[%emt 0:00:10]} Rh6 {[%emt 0:13:12]} 30. Rd3 {[%emt 0:01:59]} g4 {[%emt 0:03:47]} 31. Qxd6 {[%emt 0:03:44]} Rxh2+ {[%emt 0:00:08]} 32. Kg1 {[%emt 0:00:06]} Rh1+ {[%emt 0:06:58]} 33. Kxh1 {[%emt 0:01:26]} Qh4+ {[%emt 0:00:20]} 34. Kg1 {[%emt 0:00:09]} Qxe1+ {[%emt 0:00:32]} 35. Kh2 {[%emt 0:00:07]} 1/2-1/2

[Event "EYCC Open-U12 2019"]
[Site "Bratislava"]
[Date "2019.08.07"]
[Round "6.30"]
[White "Ivanov, Svetlen"]
[Black "Tarhan, Adar"]
[Result "0-1"]
[ECO "D35"]
[WhiteElo "1717"]
[BlackElo "1972"]
[Annotator "NA"]
[PlyCount "144"]
[EventDate "2019.08.02"]
[EventType "swiss"]
[EventCountry "SVK"]
[SourceTitle "playchess.com"]
[Source "ChessBase"]
[SourceQuality "1"]
[TimeControl "40/5400+30:1800+30"]

1. d4 {[%emt 0:00:00]} d5 {[%emt 0:00:00]} 2. c4 {[%emt 0:00:05]} e6 {[%emt 0:00:00]} 3. cxd5 {[%emt 0:00:14]} exd5 {[%emt 0:00:00]} 4. Nc3 {[%emt 0:00:12]} Nf6 {[%emt 0:01:15]} 5. Bg5 {[%emt 0:00:14]} Nbd7 {[%emt 0:00:24]} 6. e3 {[%emt 0:00:27]} c6 {[%emt 0:00:07]} 7. Bd3 {[%emt 0:00:09]} Be7 {[%emt 0:00:06]} 8. Nge2 {[%emt 0:00:32]} Nh5 {[%emt 0:00:24]} 9. Bxe7 {[%emt 0:02:25]} Qxe7 {[%emt 0:00:13]} 10. Qc2 {[%emt 0:01:43]} g6 {[%emt 0:00:25]} 11. g4 {[%emt 0:01:41]} Ng7 {[%emt 0:03:40]} 12. Ng3 {[%emt 0:01:02]} Nb6 {[%emt 0:00:35]} 13. h3 {[%emt 0:00:10]} Be6 {[%emt 0:00:37]} 14. O-O-O {[%emt 0:00:36]} O-O-O {[%emt 0:01:17]} 15. Kb1 {[%emt 0:01:16]} Kb8 {[%emt 0:00:30]} 16. Rc1 {[%emt 0:00:34]} h5 {[%emt 0:00:48]} 17. f3 {[%emt 0:10:10]} Bc8 {[%emt 0:03:18]} 18. Rce1 {[%emt 0:07:49]} hxg4 {[%emt 0:05:54]} 19. hxg4 {[%emt 0:00:55]} Rxh1 {[%emt 0:00:50]} 20. Nxh1 {[%emt 0:00:42]} Rh8 {[%emt 0:00:28]} 21. Qg2 {[%emt 0:04:10]} Ne6 {[%emt 0:04:12]} 22. Qg3+ {[%emt 0:11:33]} Qc7 {[%emt 0:01:48]} 23. f4 {[%emt 0:03:39]} Re8 {[%emt 0:10:57]} 24. Qf2 {[%emt 0:10:47]} Qe7 {[%emt 0:11:54]} 25. Re2 {[%emt 0:06:17]} Rh8 {[%emt 0:04:34]} 26. Re1 {[%emt 0:07:03]} Qh4 {[%emt 0:04:50]} 27. Rg1 {[%emt 0:04:13]} Ng7 {[%emt 0:04:02]} 28. Qxh4 {[%emt 0:02:02]} Rxh4 {[%emt 0:00:06]} 29. Nf2 {[%emt 0:00:20]} Nd7 {[%emt 0:03:11]} 30. g5 {[%emt 0:05:01]} Rh2 {[%emt 0:04:59]} 31. Ng4 {[%emt 0:01:53]} Rh3 {[%emt 0:00:45]} 32. Bf1 {[%emt 0:00:55]} Rh4 {[%emt 0:00:33]} 33. Bd3 {[%emt 0:05:02]} Nf8 {[%emt 0:03:29]} 34. Ne5 {[%emt 0:00:42]} Be6 {[%emt 0:00:18]} 35. Rg2 {[%emt 0:03:05]} Nd7 {[%emt 0:02:42]} 36. Nxd7+ {[%emt 0:00:28]} Bxd7 {[%emt 0:00:05]} 37. Kc2 {[%emt 0:00:02]} Bf5 {[%emt 0:01:45]} 38. Bxf5 {[%emt 0:02:47]} Nxf5 {[%emt 0:00:05]} 39. Kd2 {[%emt 0:00:28]} Rh3 {[%emt 0:01:10]} 40. Nd1 {[%emt 0:00:00]} Kc7 {[%emt 0:00:00]} 41. Re2 {[%emt 0:03:56]} Nd6 {[%emt 0:02:20]} 42. Nf2 {[%emt 0:01:23]} Rh2 {[%emt 0:02:37]} 43. Nd3 {[%emt 0:04:41]} Nc4+ {[%emt 0:01:40]} 44. Ke1 {[%emt 0:02:06]} Rh3 {[%emt 0:02:25]} 45. Kf2 {[%emt 0:00:10]} Kd7 {[%emt 0:01:46]} 46. b3 {[%emt 0:00:22]} Nd6 {[%emt 0:00:39]} 47. Kg2 {[%emt 0:00:33]} Rh8 {[%emt 0:00:26]} 48. Ne5+ {[%emt 0:04:29]} Ke6 {[%emt 0:01:36]} 49. Ng4 {[%emt 0:02:50]} Kf5 {[%emt 0:03:02]} 50. Nf6 {[%emt 0:00:29]} Ne4 {[%emt 0:05:04]} 51. Nd7 {[%emt 0:01:04]} Rd8 {[%emt 0:01:02]} 52. Ne5 {[%emt 0:00:22]} Nd6 {[%emt 0:00:26]} 53. Nd3 {[%emt 0:00:47]} Rh8 {[%emt 0:00:15]} 54. Nf2 {[%emt 0:01:41]} Re8 {[%emt 0:02:42]} 55. Kf3 {[%emt 0:01:01]} Rh8 {[%emt 0:04:44]} 56. Kg2 {[%emt 0:00:58]} Ne4 {[%emt 0:00:10]} 57. Nd3 {[%emt 0:00:17]} f6 {[%emt 0:02:01]} 58. gxf6 {[%emt 0:00:56]} Kxf6 {[%emt 0:00:09]} 59. Nf2 {[%emt 0:01:29]} Nxf2 {[%emt 0:01:18]} 60. Kxf2 {[%emt 0:04:35]} Kf5 {[%emt 0:03:39]} 61. Ke1 {[%emt 0:00:49]} Ke4 {[%emt 0:00:37]} 62. Kd2 {[%emt 0:00:05]} Rh3 {[%emt 0:01:23]} 63. Re1 {[%emt 0:00:15]} Rg3 {[%emt 0:00:21]} 64. Re2 {[%emt 0:04:37]} Rg1 {[%emt 0:01:05]} 65. Rf2 {[%emt 0:00:45]} Ra1 {[%emt 0:00:18]} 66. a4 {[%emt 0:00:14]} Ra2+ {[%emt 0:00:44]} 67. Ke1 {[%emt 0:00:03]} Ra3 {[%emt 0:00:05]} 68. f5 {[%emt 0:00:45]} Ra1+ {[%emt 0:02:23]} 69. Ke2 {[%emt 0:00:12]} Ra2+ {[%emt 0:00:04]} 70. Ke1 {[%emt 0:00:04]} Rxf2 {[%emt 0:00:07]} 71. Kxf2 {[%emt 0:00:01]} gxf5 {[%emt 0:00:01]} 72. a5 {[%emt 0:00:28]} f4 {[%emt 0:00:08]} 0-1

[Event "EYCC Open-U12 2019"]
[Site "Bratislava"]
[Date "2019.08.07"]
[Round "6.31"]
[White "Uritsky, Yonathan"]
[Black "Andreev, Konstantin"]
[Result "0-1"]
[ECO "B32"]
[WhiteElo "2040"]
[BlackElo "2271"]
[Annotator "NA"]
[PlyCount "118"]
[EventDate "2019.08.02"]
[EventType "swiss"]
[EventCountry "SVK"]
[SourceTitle "playchess.com"]
[Source "ChessBase"]
[SourceQuality "1"]
[TimeControl "40/5400+30:1800+30"]

1. e4 {[%emt 0:00:00]} c5 {[%emt 0:00:00]} 2. Nf3 {[%emt 0:00:05]} Nc6 {[%emt 0:00:00]} 3. d4 {[%emt 0:00:10]} cxd4 {[%emt 0:00:00]} 4. Nxd4 {[%emt 0:00:10]} e5 {[%emt 0:00:00]} 5. Nb5 {[%emt 0:00:08]} a6 {[%emt 0:00:00]} 6. Nd6+ {[%emt 0:00:13]} Bxd6 {[%emt 0:00:01]} 7. Qxd6 {[%emt 0:00:08]} Qf6 {[%emt 0:00:06]} 8. Qxf6 {[%emt 0:00:14]} Nxf6 {[%emt 0:00:07]} 9. Nc3 {[%emt 0:00:16]} d5 {[%emt 0:00:16]} 10. exd5 {[%emt 0:04:18]} Nb4 {[%emt 0:00:05]} 11. Bd3 {[%emt 0:01:09]} Nxd3+ {[%emt 0:00:19]} 12. cxd3 {[%emt 0:00:07]} Bf5 {[%emt 0:00:08]} 13. Bg5 {[%emt 0:01:08]} Bxd3 {[%emt 0:02:17]} 14. O-O-O {[%emt 0:01:03]} Bg6 {[%emt 0:18:03]} 15. Rhe1 {[%emt 0:02:38]} Nd7 {[%emt 0:00:34]} 16. b3 {[%emt 0:10:25]} O-O {[%emt 0:03:53]} 17. Kb2 {[%emt 0:01:27]} Rfc8 {[%emt 0:00:35]} 18. Rd2 {[%emt 0:01:50]} Nc5 {[%emt 0:01:34]} 19. Re3 {[%emt 0:07:31]} e4 {[%emt 0:05:02]} 20. Na4 {[%emt 0:04:13]} Nd3+ {[%emt 0:22:49]} 21. Rexd3 {[%emt 0:00:35]} exd3 {[%emt 0:00:07]} 22. Nb6 {[%emt 0:00:06]} f6 {[%emt 0:01:16]} 23. Bf4 {[%emt 0:02:50]} Re8 {[%emt 0:01:45]} 24. Nxa8 {[%emt 0:01:53]} Rxa8 {[%emt 0:01:56]} 25. Bc7 {[%emt 0:00:49]} Kf7 {[%emt 0:02:18]} 26. f4 {[%emt 0:01:05]} h5 {[%emt 0:01:16]} 27. h3 {[%emt 0:06:55]} h4 {[%emt 0:01:03]} 28. Kc3 {[%emt 0:01:12]} Ke7 {[%emt 0:00:51]} 29. Rf2 {[%emt 0:07:27]} Kd7 {[%emt 0:01:48]} 30. d6 {[%emt 0:03:23]} Be4 {[%emt 0:01:39]} 31. f5 {[%emt 0:12:10]} Re8 {[%emt 0:04:32]} 32. Rf4 {[%emt 0:01:10]} Re5 {[%emt 0:02:23]} 33. Rxh4 {[%emt 0:00:48]} Rc5+ {[%emt 0:01:38]} 34. Kd2 {[%emt 0:02:37]} Rc2+ {[%emt 0:00:14]} 35. Ke1 {[%emt 0:00:28]} Bxg2 {[%emt 0:01:17]} 36. Rd4 {[%emt 0:01:14]} d2+ {[%emt 0:04:13]} 37. Rxd2 {[%emt 0:00:24]} Rxd2 {[%emt 0:00:16]} 38. Kxd2 {[%emt 0:00:22]} Bxh3 {[%emt 0:00:05]} 39. Ke3 {[%emt 0:03:02]} Bxf5 {[%emt 0:00:06]} 40. Kf4 {[%emt 0:00:00]} Be6 {[%emt 0:00:00]} 41. Kg3 {[%emt 0:02:03]} g5 {[%emt 0:00:31]} 42. Bb8 {[%emt 0:00:54]} f5 {[%emt 0:00:05]} 43. Kf3 {[%emt 0:00:18]} Kc6 {[%emt 0:00:28]} 44. Bc7 {[%emt 0:01:57]} Bd5+ {[%emt 0:00:26]} 45. Kg3 {[%emt 0:00:09]} f4+ {[%emt 0:00:46]} 46. Kg4 {[%emt 0:00:06]} f3 {[%emt 0:00:06]} 47. Kg3 {[%emt 0:00:06]} g4 {[%emt 0:00:23]} 48. Bb8 {[%emt 0:00:11]} Be6 {[%emt 0:00:05]} 49. Ba7 {[%emt 0:09:49]} Kxd6 {[%emt 0:00:34]} 50. Kf4 {[%emt 0:00:08]} Kc6 {[%emt 0:00:20]} 51. Bf2 {[%emt 0:00:21]} Kb5 {[%emt 0:00:11]} 52. Ke5 {[%emt 0:00:07]} Bg8 {[%emt 0:02:11]} 53. Be1 {[%emt 0:00:23]} Kc5 {[%emt 0:03:16]} 54. Kf4 {[%emt 0:01:08]} Kd4 {[%emt 0:00:20]} 55. Kxg4 {[%emt 0:00:46]} Ke3 {[%emt 0:00:14]} 56. Kg3 {[%emt 0:00:05]} Bd5 {[%emt 0:00:14]} 57. Bf2+ {[%emt 0:01:00]} Kd3 {[%emt 0:00:16]} 58. a4 {[%emt 0:00:06]} a5 {[%emt 0:00:40]} 59. Bb6 {[%emt 0:00:43]} Ke2 {[%emt 0:00:04]} 0-1

[Event "EYCC Open-U12 2019"]
[Site "Bratislava"]
[Date "2019.08.07"]
[Round "6.32"]
[White "Werner, Hong Quan Dan"]
[Black "Eliseev, Sergey"]
[Result "0-1"]
[ECO "B56"]
[WhiteElo "1734"]
[BlackElo "2053"]
[Annotator "NA"]
[PlyCount "164"]
[EventDate "2019.08.02"]
[EventType "swiss"]
[EventCountry "SVK"]
[SourceTitle "playchess.com"]
[Source "ChessBase"]
[SourceQuality "1"]
[TimeControl "40/5400+30:1800+30"]

1. e4 {[%emt 0:00:00]} c5 {[%emt 0:00:00]} 2. Nf3 {[%emt 0:00:00]} d6 {[%emt 0:00:00]} 3. d4 {[%emt 0:00:13]} cxd4 {[%emt 0:00:00]} 4. Nxd4 {[%emt 0:00:20]} Nf6 {[%emt 0:00:07]} 5. Nc3 {[%emt 0:00:52]} Nc6 {[%emt 0:00:07]} 6. f3 {[%emt 0:00:56]} e5 {[%emt 0:01:32]} 7. Nb3 {[%emt 0:01:48]} Be7 {[%emt 0:02:31]} 8. Be3 {[%emt 0:03:23]} Be6 {[%emt 0:07:52]} 9. Nd5 {[%emt 0:10:26]} Bxd5 {[%emt 0:19:35]} 10. exd5 {[%emt 0:00:32]} Nb4 {[%emt 0:04:31]} 11. c4 {[%emt 0:10:19]} a5 {[%emt 0:12:26]} 12. a3 {[%emt 0:08:01]} Na6 {[%emt 0:01:21]} 13. Bd3 {[%emt 0:07:55]} O-O {[%emt 0:08:43]} 14. O-O {[%emt 0:06:47]} Nd7 {[%emt 0:04:20]} 15. f4 {[%emt 0:13:24]} exf4 {[%emt 0:08:04]} 16. Bxf4 {[%emt 0:01:07]} Qb6+ {[%emt 0:04:57]} 17. Kh1 {[%emt 0:00:20]} a4 {[%emt 0:03:56]} 18. Nd4 {[%emt 0:08:35]} g6 {[%emt 0:07:27]} 19. Nb5 {[%emt 0:03:31]} Ne5 {[%emt 0:04:51]} 20. Bxe5 {[%emt 0:05:51]} dxe5 {[%emt 0:00:04]} 21. d6 {[%emt 0:05:07]} Bg5 {[%emt 0:04:36]} 22. Qf3 {[%emt 0:02:17]} Nc5 {[%emt 0:01:01]} 23. Rae1 {[%emt 0:01:01]} Rae8 {[%emt 0:02:00]} 24. Qd5 {[%emt 0:01:14]} Qc6 {[%emt 0:00:53]} 25. Be4 {[%emt 0:04:04]} Nxe4 {[%emt 0:00:46]} 26. Rxe4 {[%emt 0:01:05]} Qxd5 {[%emt 0:00:36]} 27. cxd5 {[%emt 0:00:08]} f5 {[%emt 0:00:21]} 28. Rxa4 {[%emt 0:00:33]} Rd8 {[%emt 0:00:36]} 29. Nc7 {[%emt 0:00:33]} e4 {[%emt 0:00:22]} 30. g3 {[%emt 0:00:36]} Bd2 {[%emt 0:00:15]} 31. Rf2 {[%emt 0:01:57]} e3 {[%emt 0:00:09]} 32. Re2 {[%emt 0:00:21]} Rxd6 {[%emt 0:00:21]} 33. Rd4 {[%emt 0:01:11]} Rfd8 {[%emt 0:00:45]} 34. b4 {[%emt 0:01:08]} R8d7 {[%emt 0:00:21]} 35. Rc4 {[%emt 0:00:18]} Kf7 {[%emt 0:00:53]} 36. Kg2 {[%emt 0:00:39]} Re7 {[%emt 0:00:40]} 37. Rc5 {[%emt 0:01:04]} Rdd7 {[%emt 0:00:46]} 38. Ne6 {[%emt 0:00:30]} b6 {[%emt 0:00:35]} 39. Rb5 {[%emt 0:00:16]} Rd6 {[%emt 0:00:26]} 40. a4 {[%emt 0:00:00]} Red7 {[%emt 0:00:00]} 41. Nf4 {[%emt 0:01:11]} Kf6 {[%emt 0:11:31]} 42. Kf3 {[%emt 0:02:25]} g5 {[%emt 0:00:32]} 43. Nd3 {[%emt 0:01:47]} g4+ {[%emt 0:10:56]} 44. Kg2 {[%emt 0:00:19]} Ra7 {[%emt 0:04:00]} 45. Nb2 {[%emt 0:00:37]} Rc7 {[%emt 0:03:52]} 46. Nd1 {[%emt 0:00:45]} Re7 {[%emt 0:00:31]} 47. a5 {[%emt 0:00:40]} bxa5 {[%emt 0:00:35]} 48. bxa5 {[%emt 0:00:20]} Kg5 {[%emt 0:01:26]} 49. Nb2 {[%emt 0:01:40]} Re4 {[%emt 0:01:02]} 50. Nd3 {[%emt 0:00:26]} Ra4 {[%emt 0:00:39]} 51. Nf4 {[%emt 0:00:28]} Ra6 {[%emt 0:00:35]} 52. Rb6 {[%emt 0:00:52]} R4xa5 {[%emt 0:00:47]} 53. Rxa6 {[%emt 0:01:39]} Rxa6 {[%emt 0:00:04]} 54. h4+ {[%emt 0:00:39]} Kf6 {[%emt 0:00:45]} 55. Nd3 {[%emt 0:01:28]} Rd6 {[%emt 0:00:29]} 56. Nf4 {[%emt 0:00:16]} Ke5 {[%emt 0:00:26]} 57. Kf1 {[%emt 0:00:32]} Rb6 {[%emt 0:00:42]} 58. Kg2 {[%emt 0:00:31]} Ke4 {[%emt 0:00:22]} 59. Kg1 {[%emt 0:01:21]} Kf3 {[%emt 0:00:25]} 60. Kh2 {[%emt 0:00:24]} Ra6 {[%emt 0:00:36]} 61. Rg2 {[%emt 0:00:42]} Rd6 {[%emt 0:00:49]} 62. Kh1 {[%emt 0:01:23]} h6 {[%emt 0:00:27]} 63. Kg1 {[%emt 0:00:21]} Rd8 {[%emt 0:00:31]} 64. Kh1 {[%emt 0:00:12]} Re8 {[%emt 0:00:29]} 65. Ne6 {[%emt 0:02:58]} Ke4 {[%emt 0:00:26]} 66. Kg1 {[%emt 0:00:36]} Re7 {[%emt 0:00:29]} 67. Nf4 {[%emt 0:00:16]} Be1 {[%emt 0:00:39]} 68. Kf1 {[%emt 0:03:11]} Bf2 {[%emt 0:00:20]} 69. Rxf2 {[%emt 0:02:03]} exf2 {[%emt 0:00:06]} 70. Kxf2 {[%emt 0:00:08]} Ra7 {[%emt 0:00:23]} 71. Ke2 {[%emt 0:00:40]} Ra2+ {[%emt 0:00:13]} 72. Kd1 {[%emt 0:00:34]} Ra4 {[%emt 0:00:31]} 73. Kc2 {[%emt 0:00:16]} Ke5 {[%emt 0:00:27]} 74. Ne2 {[%emt 0:01:12]} Ra2+ {[%emt 0:00:11]} 75. Kd3 {[%emt 0:00:11]} Rxe2 76. Kxe2 {[%emt 0:00:12]} Kxd5 {[%emt 0:01:21]} 77. Kd3 {[%emt 0:00:59]} h5 {[%emt 0:00:25]} 78. Ke3 {[%emt 0:00:07]} Ke5 {[%emt 0:00:06]} 79. Kf2 {[%emt 0:00:17]} Kd4 {[%emt 0:00:20]} 80. Ke2 {[%emt 0:00:14]} Ke4 {[%emt 0:00:04]} 81. Kf2 {[%emt 0:00:13]} Kd3 {[%emt 0:00:07]} 82. Kg1 {[%emt 0:00:20]} Ke2 0-1

[Event "EYCC Open-U12 2019"]
[Site "Bratislava"]
[Date "2019.08.07"]
[Round "6.33"]
[White "Suleymanov, Ali"]
[Black "Culum, Sanjin"]
[Result "1-0"]
[ECO "A45"]
[WhiteElo "1733"]
[BlackElo "1912"]
[Annotator "NA"]
[PlyCount "81"]
[EventDate "2019.08.02"]
[EventType "swiss"]
[EventCountry "SVK"]
[SourceTitle "playchess.com"]
[Source "ChessBase"]
[SourceQuality "1"]
[TimeControl "40/5400+30:1800+30"]

1. d4 {[%emt 0:00:00]} Nf6 {[%emt 0:00:00]} 2. Bf4 {[%emt 0:00:00]} e6 {[%emt 0:00:02]} 3. e3 {[%emt 0:00:00]} d5 {[%emt 0:00:11]} 4. Nf3 {[%emt 0:00:04]} Bd6 {[%emt 0:00:17]} 5. Bg3 {[%emt 0:00:08]} O-O {[%emt 0:00:10]} 6. Nbd2 {[%emt 0:00:48]} c5 {[%emt 0:00:09]} 7. c3 {[%emt 0:00:52]} Qc7 {[%emt 0:00:05]} 8. Ne5 {[%emt 0:04:42]} Nbd7 {[%emt 0:00:15]} 9. f4 {[%emt 0:02:03]} b6 {[%emt 0:02:10]} 10. Bd3 {[%emt 0:03:42]} Bb7 {[%emt 0:00:47]} 11. Qf3 {[%emt 0:05:06]} Rac8 {[%emt 0:02:04]} 12. Bh4 {[%emt 0:05:02]} Rfe8 {[%emt 0:05:27]} 13. g4 {[%emt 0:01:39]} cxd4 {[%emt 0:05:59]} 14. exd4 {[%emt 0:01:33]} Ne4 {[%emt 0:08:39]} 15. Nxe4 {[%emt 0:05:04]} dxe4 {[%emt 0:00:05]} 16. Bxe4 {[%emt 0:00:07]} Bxe4 {[%emt 0:00:20]} 17. Qxe4 {[%emt 0:00:05]} f6 {[%emt 0:00:35]} 18. Nxd7 {[%emt 0:01:25]} Qxd7 {[%emt 0:00:09]} 19. O-O-O {[%emt 0:01:43]} Qa4 {[%emt 0:04:33]} 20. Kb1 {[%emt 0:02:44]} b5 {[%emt 0:00:34]} 21. Bg3 {[%emt 0:05:47]} Qc4 {[%emt 0:04:20]} 22. Rhe1 {[%emt 0:13:36]} Rb8 {[%emt 0:05:35]} 23. d5 {[%emt 0:08:05]} Qc7 {[%emt 0:01:17]} 24. dxe6 {[%emt 0:09:38]} b4 {[%emt 0:01:03]} 25. c4 {[%emt 0:05:10]} b3 {[%emt 0:00:53]} 26. a3 {[%emt 0:01:16]} Rbc8 {[%emt 0:01:33]} 27. Rc1 {[%emt 0:03:44]} Bc5 {[%emt 0:02:03]} 28. f5 {[%emt 0:02:40]} Qa5 {[%emt 0:00:06]} 29. Qb7 {[%emt 0:01:33]} Bxa3 {[%emt 0:02:34]} 30. Qxb3 {[%emt 0:00:35]} Bb4 {[%emt 0:00:13]} 31. Red1 {[%emt 0:00:46]} Rc6 {[%emt 0:00:47]} 32. Be1 {[%emt 0:00:52]} Rb6 {[%emt 0:00:16]} 33. c5 {[%emt 0:01:59]} Rb5 {[%emt 0:01:07]} 34. e7+ {[%emt 0:00:20]} Kh8 {[%emt 0:00:03]} 35. Bxb4 {[%emt 0:00:49]} Rxb4 {[%emt 0:00:09]} 36. Rd8 {[%emt 0:00:29]} h5 {[%emt 0:04:17]} 37. Rxe8+ {[%emt 0:00:08]} Kh7 {[%emt 0:00:05]} 38. Rh8+ {[%emt 0:00:15]} Kxh8 {[%emt 0:00:05]} 39. e8=Q+ {[%emt 0:00:21]} Kh7 {[%emt 0:00:10]} 40. Qbg8+ {[%emt 0:00:00]} Kh6 {[%emt 0:00:00]} 41. Qg6# {[%emt 0:00:09]} 1-0